fUST/lending_fUST_20250820
["ID","MTS","AMOUNT","RATE_DAILY","PERIOD"]
[380317268,1755664239366,-480.0,0.00024155,2]
[380317270,1755664239375,-480.0,0.00024155,2]
[380317272,1755664239386,-432.2343682,0.00024164,2]
[380317274,1755664239395,-432.2343682,0.00024164,2]
[380317276,1755664239404,-432.2343682,0.00024164,2]
[380317278,1755664239413,-432.2343682,0.00024164,2]
[380317280,1755664239423,-438.8676342,0.00024164,2]
[380317282,1755664239432,-432.2343682,0.00024164,2]
[380317284,1755664239441,-432.2343682,0.00024164,2]
[380317286,1755664239451,-196.0,0.00024179,2]
[380317288,1755664239460,-1000.0,0.00024185,5]
[380317290,1755664239469,-1755.7043696,0.000242,2]
[380317292,1755664239478,-250.0,0.00024201,2]
[380317294,1755664239488,-480.0,0.00024261,2]
[380317296,1755664239499,-151.0,0.000243,10]
[380317298,1755664239508,-155.37,0.00024311,7]
[380317300,1755664239518,-153.0,0.00024356,2]
[380317302,1755664239527,-153.0,0.00024356,2]
[380317304,1755664239536,-151.0,0.000244,5]
[380317306,1755664239546,-155.37,0.00024411,7]
[380317308,1755664239556,-560.04733037,0.00024429,2]
[380317310,1755664239566,-480.0,0.00024429,2]
[380317312,1755664239576,-517.43491449,0.00024497,2]
[380317314,1755664239586,-151.0,0.000245,9]
[380317316,1755664239595,-660.27645785,0.000245,2]
[380317318,1755664239604,-1755.7043696,0.000245,2]
[380317320,1755664239613,-155.38394297,0.00024511,7]
[380317322,1755664239623,-168.0,0.00024524,2]
[380317324,1755664239632,-480.0,0.00024535,2]
[380317326,1755664239641,-200.0,0.0002454,10]
[380317328,1755664239650,-307.7428896,0.00024575,2]
[380317330,1755664239658,-160.8718701,0.00024575,2]
[380317331,1755664239667,-293.9452039,0.00024575,2]
[380317333,1755664239676,-153.0,0.00024575,2]
[380317336,1755664239686,-160.8718701,0.00024575,2]
[380317337,1755664239695,-293.9452039,0.00024575,2]
[380317340,1755664239705,-581.0009137,0.00024575,2]
[380317341,1755664239714,-160.8718701,0.00024575,2]
[380317343,1755664239723,-293.9452039,0.00024575,2]
[380317345,1755664239733,-293.9452039,0.00024575,2]
[380317347,1755664239744,-160.8718701,0.00024575,2]
[380317349,1755664239753,-293.9452039,0.00024575,2]
[380317351,1755664239762,-160.8718701,0.00024575,2]
[380317353,1755664239771,-293.9452039,0.00024575,2]
[380317355,1755664239780,-162.6918208,0.00024575,2]
[380317357,1755664239790,-153.0,0.00024575,2]
[380317359,1755664239799,-293.9452039,0.00024575,2]
[380317361,1755664239808,-150.012382,0.000246,8]
[380317363,1755664239818,-151.0,0.000246,10]
[380317365,1755664239828,-260.0,0.00024602,2]
[380317367,1755664239837,-150.012382,0.00024622,5]
[380317369,1755664239846,-977.78158742,0.00024639,2]
[380317371,1755664239855,-500.0,0.00024639,2]
[380317373,1755664239865,-977.78158742,0.00024639,2]
[380317375,1755664239874,-977.78158742,0.00024639,2]
[380317377,1755664239883,-977.78158742,0.00024639,2]
[380317379,1755664239892,-440.3966399,0.00024639,2]
[380317381,1755664239902,-977.78158742,0.00024639,2]
[380317383,1755664239911,-977.78158742,0.00024639,2]
[380317385,1755664239920,-977.78158742,0.00024639,2]
[380317388,1755664239929,-977.78158742,0.00024639,2]
[380317390,1755664239939,-977.78158742,0.00024639,2]
[380317392,1755664239948,-977.78158742,0.00024639,2]
[380317394,1755664239957,-977.78158742,0.00024639,2]
[380317396,1755664239967,-977.78158742,0.00024639,2]
[380317398,1755664239976,-977.78158742,0.00024639,2]
[380317400,1755664239986,-977.78158742,0.00024639,2]
[380317402,1755664239995,-194943.70998098,0.0002464,15]
[380317405,1755664240008,-49045.63971639,0.0002464,15]
[380317407,1755664240023,-480.0,0.00024118,2]
[380317410,1755664240032,-2460.72902232,0.0002464,15]
[380317422,1755664240388,-480.0,0.00024392,2]
[380317423,1755664240397,-2393.95,0.00024419,10]
[380317424,1755664240407,-977.78158742,0.00024639,2]
[380317425,1755664240417,-1831.26841258,0.0002464,15]
[380317448,1755664324606,300.0,0.00028,120]
[380317449,1755664345435,300.0,0.00028,120]
[380317450,1755664395814,300.0,0.00028,120]
[380317452,1755664463978,300.0,0.00028,120]
[380317458,1755664507669,300.0,0.00028,120]
[380317469,1755664599573,300.0,0.00028,120]
[380317484,1755664627799,300.0,0.00028,120]
[380317500,1755664838762,163.854804,0.00013699,2]
[380317501,1755664940415,151.0,0.000258,120]
[380317538,1755665432705,-5000.0,0.00019938,2]
[380317539,1755665432715,-150.00922327,0.00020548,2]
[380317540,1755665432724,-163.854804,0.00020548,2]
[380317541,1755665432733,-300.0,0.00021996,2]
[380317542,1755665432742,-2039.97083424,0.00021997,2]
[380317582,1755665438735,-5000.0,0.00019739,2]
[380317584,1755665438746,-4841.88660416,0.00021997,2]
[380317586,1755665438756,-349.62862785,0.00022,7]
[380317588,1755665438765,-160.0,0.00022113,2]
[380317590,1755665438778,-150.82,0.0002225,2]
[380317591,1755665438787,-175.965889,0.00022277,2]
[380317593,1755665438796,-215.82729805,0.00022314,2]
[380317595,1755665438806,-480.0,0.00022611,2]
[380317596,1755665438815,-700.0,0.00022612,2]
[380317598,1755665438824,-160.0,0.00022856,2]
[380317600,1755665438833,-417.15472785,0.00022856,2]
[380317601,1755665438843,-160.0,0.00022856,2]
[380317604,1755665438852,-216.9170744,0.00022856,2]
[380317606,1755665438861,-865.0,0.00022863,2]
[380317608,1755665438870,-480.0,0.00022885,2]
[380317610,1755665438879,-864.0,0.00022972,2]
[380317612,1755665438889,-160.0,0.00023,2]
[380317614,1755665438898,-864.0,0.0002302,2]
[380317615,1755665438906,-480.0,0.00023159,2]
[380317617,1755665438915,-435.0890013,0.00023205,2]
[380317619,1755665438924,-432.2343682,0.00023205,2]
[380317620,1755665438933,-864.0,0.00023249,2]
[380317622,1755665438942,-480.0,0.00023288,2]
[380317624,1755665438951,-480.0,0.00023288,2]
[380317625,1755665438960,-295.12593839,0.00023289,2]
[380317627,1755665438969,-485.27173694,0.00023289,2]
[380317629,1755665438978,-484.18106362,0.00023289,2]
[380317630,1755665438987,-497.10432431,0.00023289,2]
[380317632,1755665438996,-480.76253618,0.00023289,2]
[380317634,1755665439005,-480.0,0.00023433,2]
[380317635,1755665439014,-864.0,0.00023472,2]
[380317637,1755665439024,-480.0,0.00023562,2]
[380317639,1755665439034,-480.0,0.00023562,2]
[380317641,1755665439043,-581.0009137,0.00023589,2]
[380317642,1755665439052,-168.0,0.00023603,2]
[380317644,1755665439061,-480.0,0.00023607,2]
[380317646,1755665439070,-452.75555024,0.00023607,2]
[380317648,1755665439079,-240.03954782,0.00023625,2]
[380317650,1755665439088,-1000.0,0.00023625,2]
[380317652,1755665439097,-1014.08878042,0.00023625,2]
[380317654,1755665439107,-151.0,0.00023633,2]
[380317656,1755665439116,-17842.522448,0.00023633,2]
[380317658,1755665439125,-480.0,0.00023707,2]
[380317660,1755665439134,-480.0,0.00023707,2]
[380317662,1755665439143,-480.0,0.00023707,2]
[380317664,1755665439153,-480.0,0.00023707,2]
[380317666,1755665439162,-700.0,0.00023708,2]
[380317668,1755665439171,-211.9606357,0.00023733,2]
[380317670,1755665439181,-305.30265026,0.00023742,2]
[380317672,1755665439192,-19.1881279,0.00023742,2]
[380317674,1755665439202,-211.9606357,0.00023747,2]
[380317676,1755665439212,-293.9452039,0.00023753,2]
[380317678,1755665439223,-160.8718701,0.00023753,2]
[380317680,1755665439232,-153.0,0.00023753,2]
[380317682,1755665439241,-11.4241524,0.00023753,2]
[380317750,1755665440689,-282.5210515,0.00023753,2]
[380317752,1755665440699,-1162.0018274,0.00023753,2]
[380317754,1755665440708,-467.8121598,0.00023753,2]
[380317756,1755665440717,-587.8904078,0.00023753,2]
[380317758,1755665440726,-581.0009137,0.00023753,2]
[380317760,1755665440735,-160.8718701,0.00023753,2]
[380317762,1755665440744,-153.0,0.00023753,2]
[380317764,1755665440754,-380.3733635,0.00023753,2]
[380317766,1755665440764,-380.72715451,0.00023753,2]
[380318002,1755665443812,-289.54641168,0.00023589,2]
[380318003,1755665443823,-291.45450202,0.00023589,2]
[380318004,1755665443832,-228.02549794,0.00023753,2]
[380318101,1755665446803,-552.28689855,0.00023753,2]
[380318103,1755665446812,-293.9452039,0.00023753,2]
[380318105,1755665446822,-160.8718701,0.00023753,2]
[380318107,1755665446831,-153.0,0.00023753,2]
[380318109,1755665446840,-214.24602745,0.00023756,2]
[380318341,1755665586191,300.0,0.00028,120]
[380318342,1755665864323,200.0,0.00028,120]
[380318343,1755665899202,164.07252,0.00013699,2]
[380318348,1755666451097,-10895.17906071,0.000199,2]
[380318349,1755666451119,-3396.68465229,0.00020258,2]
[380318351,1755666511104,1087.1510621,0.000189,2]
[380318352,1755666519270,294.0,0.000189,2]
[380318366,1755666631835,-1184.55,0.000199,2]
[380318367,1755666631892,-3365.46,0.000199,2]
[380318368,1755666631904,-992.65844202,0.000199,2]
[380318443,1755666637930,-4876.11516159,0.000199,2]
[380318444,1755666637943,-5000.0,0.00020041,2]
[380318445,1755666637953,-10418.78360338,0.00020258,2]
[380318446,1755666637964,-1455.61289989,0.0002028,2]
[380318447,1755666637974,-600.81895218,0.0002028,2]
[380318448,1755666637984,-538.692193,0.00020615,2]
[380318449,1755666637994,-480.0,0.00020615,2]
[380318450,1755666638004,-10418.78360338,0.00020616,2]
[380318451,1755666638014,-396.16110646,0.00020851,2]
[380318452,1755666638023,-480.0,0.00020889,2]
[380318453,1755666638032,-164.07252,0.00020951,2]
[380318454,1755666638042,-3367.20385652,0.00020974,2]
[380318455,1755666638076,-7051.57974686,0.00020974,2]
[380318456,1755666638086,-480.0,0.00021163,2]
[380318457,1755666638096,-10418.78360338,0.00021331,2]
[380318458,1755666638105,-480.0,0.00021437,2]
[380318459,1755666638116,-679.97978853,0.00021689,2]
[380318460,1755666638128,-2071.31285137,0.00021689,2]
[380318461,1755666638138,-426.885,0.00021689,2]
[380318462,1755666638149,-1648.38405388,0.00021689,2]
[380318464,1755666639803,-272.13523903,0.00019941,2]
[380318465,1755666639814,-5592.2219096,0.00021689,2]
[380318466,1755666639823,-480.0,0.00021711,2]
[380318467,1755666639832,-396.16110639,0.00021723,2]
[380318468,1755666639842,-480.0,0.00021985,2]
[380318469,1755666639854,-300.0,0.00021999,2]
[380318470,1755666639864,-2000.0,0.00022,2]
[380318471,1755666639874,-261.74159377,0.00022046,2]
[380318472,1755666639883,-500.0,0.00022046,2]
[380318473,1755666639893,-500.0,0.00022046,2]
[380318474,1755666639903,-513.88999083,0.00022046,2]
[380318475,1755666639913,-500.0,0.00022046,2]
[380318476,1755666639923,-500.0,0.00022046,2]
[380318477,1755666639932,-295.293584,0.00022046,2]
[380318478,1755666639941,-10418.78360338,0.00022047,2]
[380318479,1755666639951,-160.0,0.00022137,2]
[380318480,1755666639960,-215.82729805,0.00022137,2]
[380318481,1755666639969,-160.0,0.00022137,2]
[380318482,1755666639979,-160.0,0.00022137,2]
[380318483,1755666639988,-160.0,0.00022138,2]
[380318484,1755666639997,-480.0,0.00022259,2]
[380318485,1755666640006,-10418.78360338,0.00022405,2]
[380318486,1755666640016,-480.0,0.00022533,2]
[380318487,1755666640025,-700.0,0.00022612,2]
[380318488,1755666640035,-175.965889,0.00022681,2]
[380318489,1755666640044,-153.0,0.00022778,2]
[380318490,1755666640054,-210.79753445,0.00022807,2]
[380318491,1755666640064,-160.8718701,0.00022904,2]
[380318492,1755666640073,-153.0,0.00022932,2]
[380318493,1755666640083,-293.9452039,0.00022956,2]
[380318494,1755666640092,-160.842982,0.00022978,2]
[380318495,1755666640101,-153.0,0.00022978,2]
[380318496,1755666640111,-153.0,0.00022978,2]
[380318497,1755666640121,-160.8718701,0.00022978,2]
[380318498,1755666640131,-592.3173046,0.00022978,2]
[380318499,1755666640141,-1994.96,0.0002299,10]
[380318500,1755666640150,-3982.6064131,0.00023,2]
[380318501,1755666640160,-2000.0,0.00023,2]
[380318502,1755666640169,-1009.73602413,0.00023,5]
[380318503,1755666640179,-153.0,0.00023056,2]
[380318504,1755666640190,-153.0,0.00023056,2]
[380318505,1755666640199,-581.0009137,0.00023078,2]
[380318506,1755666640209,-153.0,0.00023078,2]
[380318507,1755666640218,-160.8718701,0.00023078,2]
[380318508,1755666640227,-581.0009137,0.00023078,2]
[380318509,1755666640237,-293.9452039,0.00023078,2]
[380318510,1755666640246,-306.0,0.00023078,2]
[380318511,1755666640256,-153.0,0.00023078,2]
[380318512,1755666640265,-160.8718701,0.00023078,2]
[380318513,1755666640275,-421.4844175,0.00023078,2]
[380318514,1755666640284,-160.8718701,0.00023078,2]
[380318515,1755666640293,-153.0,0.00023078,2]
[380318516,1755666640302,-293.9452039,0.00023078,2]
[380318517,1755666640312,-160.8718701,0.00023078,2]
[380318518,1755666640321,-432.2343682,0.00023178,2]
[380318519,1755666640331,-432.2343682,0.00023178,2]
[380318520,1755666640340,-948.7265,0.00023205,2]
[380318521,1755666640350,-432.2343682,0.00023205,2]
[380318522,1755666640359,-432.2343682,0.00023205,2]
[380318523,1755666640369,-432.2343682,0.00023205,2]
[380318524,1755666640379,-432.2343682,0.00023205,2]
[380318525,1755666640389,-432.2343682,0.00023205,2]
[380318526,1755666640399,-432.2343682,0.00023233,2]
[380318527,1755666640408,-432.2343682,0.00023233,2]
[380318528,1755666640417,-432.2343682,0.00023233,2]
[380318529,1755666640427,-432.2343682,0.00023233,2]
[380318530,1755666640436,-432.2343682,0.00023233,2]
[380318531,1755666640445,-432.2343682,0.00023233,2]
[380318532,1755666640454,-432.2343682,0.00023233,2]
[380318533,1755666640464,-432.2343682,0.00023233,2]
[380318534,1755666640474,-432.2343682,0.00023233,2]
[380318535,1755666640484,-432.2343682,0.00023233,2]
[380318536,1755666640493,-432.2343682,0.00023233,2]
[380318537,1755666640503,-432.2343682,0.00023233,2]
[380318538,1755666640512,-2117.91,0.00023248,2]
[380318539,1755666640522,-480.0,0.00023289,2]
[380318540,1755666640532,-648.0,0.00023326,2]
[380318541,1755666640541,-153.0,0.00023425,2]
[380318542,1755666640551,-153.0,0.00023425,2]
[380318543,1755666640561,-153.0,0.00023425,2]
[380318544,1755666640570,-153.0,0.00023425,2]
[380318545,1755666640579,-153.0,0.00023425,2]
[380318546,1755666640589,-306.0,0.00023425,2]
[380318547,1755666640598,-153.0,0.00023425,2]
[380318548,1755666640607,-293.9452039,0.00023425,2]
[380318549,1755666640616,-648.0,0.00023451,2]
[380318550,1755666640626,-153.0,0.000235,2]
[380318551,1755666640636,-2000.0,0.000235,2]
[380318552,1755666640645,-160.0,0.00023509,2]
[380318553,1755666640654,-216.9170744,0.00023509,2]
[380318554,1755666640663,-160.0,0.00023509,2]
[380318555,1755666640677,-417.15472785,0.00023509,2]
[380318556,1755666640692,-151.71427847,0.00023511,2]
[380318557,1755666640702,-151.0,0.00023511,2]
[380318558,1755666640711,-152.10104815,0.00023511,2]
[380318559,1755666640720,-160.0,0.00023513,2]
[380318560,1755666640730,-151.0,0.00023522,2]
[380318561,1755666640739,-151.0,0.00023532,2]
[380318562,1755666640748,-17842.522448,0.00023532,2]
[380318563,1755666640757,-153.0,0.00023534,2]
[380318564,1755666640766,-153.0,0.00023534,2]
[380318565,1755666640776,-153.0,0.00023534,2]
[380318566,1755666640785,-153.0,0.00023534,2]
[380318567,1755666640794,-478.45834,0.00023563,2]
[380318568,1755666640803,-648.0,0.00023579,2]
[380318569,1755666640813,-153.0,0.00023589,2]
[380318570,1755666640823,-480.0,0.00023624,2]
[380318571,1755666640832,-151.0,0.00023624,2]
[380318572,1755666640841,-521.0,0.00023624,2]
[380318573,1755666640851,-151.0,0.00023624,2]
[380318574,1755666640863,-153.00135488,0.00023624,2]
[380318575,1755666640872,-480.0,0.00023624,2]
[380318576,1755666640882,-500.0,0.00023624,2]
[380318577,1755666640891,-480.0,0.00023632,2]
[380318578,1755666640900,-1000.0,0.00023636,5]
[380318579,1755666640910,-160.8718701,0.00023671,2]
[380318580,1755666640919,-160.0,0.00023692,2]
[380318581,1755666640929,-438.8676342,0.000237,2]
[380318582,1755666640938,-1196.1933703,0.000237,2]
[380318583,1755666640948,-1448.49568732,0.000237,2]
[380318584,1755666640957,-700.0,0.00023708,2]
[380318585,1755666640966,-160.8718701,0.00023726,2]
[380318586,1755666640975,-160.6407653,0.00023726,2]
[380318587,1755666640984,-506.3382401,0.00023726,2]
[380318588,1755666640994,-306.0,0.00023726,2]
[380318589,1755666641003,-206.09651376,0.0002375,2]
[380318590,1755666641012,-587.8904078,0.00023753,2]
[380318592,1755666641021,-587.8904078,0.00023753,2]
[380318595,1755666641031,-153.0,0.00023753,2]
[380318597,1755666641040,-293.9452039,0.00023753,2]
[380318599,1755666641049,-293.9452039,0.00023753,2]
[380318601,1755666641058,-293.9452039,0.00023753,2]
[380318603,1755666641067,-293.9452039,0.00023753,2]
[380318604,1755666641077,-306.0,0.00023753,2]
[380318605,1755666641086,-1905.36032951,0.00023756,2]
[380318606,1755666641096,-687.10321137,0.00023759,2]
[380318607,1755666641105,-324.49077816,0.00023761,2]
[380318608,1755666641114,-443.46994911,0.00023773,2]
[380318609,1755666641125,-206.09651376,0.00023778,2]
[380318610,1755666641134,-248.73057721,0.00023785,2]
[380318611,1755666641143,-150.22477465,0.00023785,2]
[380318612,1755666641152,-2119.60635696,0.00023785,2]
[380318613,1755666641161,-291.67,0.0002379,3]
[380318614,1755666641171,-875.03,0.0002379,3]
[380318615,1755666641180,-687.10321137,0.00023794,2]
[380318616,1755666641190,-200.70008527,0.00023796,2]
[380318617,1755666641199,-480.0,0.00023798,2]
[380318618,1755666641209,-480.0,0.00023798,2]
[380318619,1755666641220,-500.0,0.00023799,2]
[380318620,1755666641229,-440.3966399,0.00023799,2]
[380318621,1755666641239,-1705.62847783,0.00023799,2]
[380318622,1755666641248,-1705.62847783,0.00023799,2]
[380318623,1755666641258,-1705.62847783,0.00023799,2]
[380318624,1755666641267,-1705.62847783,0.00023799,2]
[380318625,1755666641276,-1705.62847783,0.00023799,2]
[380318626,1755666641285,-1705.62847783,0.00023799,2]
[380318627,1755666641295,-1705.62847783,0.00023799,2]
[380318628,1755666641303,-1705.62847783,0.00023799,2]
[380318629,1755666641312,-1705.62847783,0.00023799,2]
[380318630,1755666641321,-1705.62847783,0.00023799,2]
[380318631,1755666641330,-1705.62847783,0.00023799,2]
[380318632,1755666641339,-1705.62847783,0.00023799,2]
[380318633,1755666641349,-1705.62847783,0.00023799,2]
[380318634,1755666641359,-1705.62847783,0.00023799,2]
[380318635,1755666641368,-1705.62847783,0.00023799,2]
[380318636,1755666641377,-1705.62847783,0.00023799,2]
[380318637,1755666641387,-1705.62847783,0.00023799,2]
[380318638,1755666641397,-1721.13419127,0.00023799,2]
[380318639,1755666641406,-1721.13419127,0.00023799,2]
[380318640,1755666641416,-1721.13419127,0.00023799,2]
[380318641,1755666641426,-1721.13419127,0.00023799,2]
[380318642,1755666641435,-1721.13419127,0.00023799,2]
[380318643,1755666641445,-1721.13419127,0.00023799,2]
[380318644,1755666641454,-1721.13419127,0.00023799,2]
[380318645,1755666641463,-1721.13419127,0.00023799,2]
[380318646,1755666641473,-1721.13419127,0.00023799,2]
[380318647,1755666641482,-1721.13419127,0.00023799,2]
[380318648,1755666641492,-2045.50178889,0.00023799,2]
[380318649,1755666641502,-126549.06334829,0.000238,2]
[380318659,1755666642867,-517.57189217,0.00022137,2]
[380318660,1755666642978,-256.2,0.00022137,2]
[380318665,1755666645811,-4054.00800407,0.00022137,2]
[380318666,1755666645822,-455.43777871,0.00022137,2]
[380318667,1755666645833,-1708.55518027,0.00022137,2]
[380318668,1755666645870,-5696.16766215,0.00022137,2]
[380318669,1755666645880,-396.16110639,0.00022596,2]
[380318670,1755666645891,-160.8718701,0.00022849,2]
[380318671,1755666645902,-293.9452039,0.00022932,2]
[380318672,1755666645912,-480.0,0.00023632,2]
[380318673,1755666645924,-2021.59265578,0.000238,2]
[380318674,1755666645937,-9426.01228607,0.000238,2]
[380318675,1755666645948,-31039.52381049,0.000238,2]
[380318682,1755666913026,164.271057,0.00013699,2]
[380318694,1755667650133,-1378.61615532,0.0001922,2]
[380318695,1755667650156,-3170.83824909,0.00019683,2]
[380318698,1755667716689,788.48533964,0.000189,2]
[380318714,1755667832085,-5000.0,0.0001935,2]
[380318715,1755667832095,-302.45563732,0.00019545,2]
[380318716,1755667832104,-175.965889,0.00019863,2]
[380318717,1755667832117,-186.196036,0.00019882,2]
[380318718,1755667832127,-1200.0,0.00019892,2]
[380318719,1755667832136,-300.0,0.00019893,2]
[380318720,1755667832146,-300.0,0.00019893,2]
[380318721,1755667832156,-300.0,0.00019893,2]
[380318722,1755667832166,-300.0,0.00019893,2]
[380318723,1755667832175,-300.0,0.00019893,2]
[380318724,1755667832185,-1200.0,0.00019894,2]
[380318725,1755667832195,-8807.63091587,0.000199,2]
[380318726,1755667832204,-2015.44632186,0.0002,2]
[380318728,1755667832216,-160.34776757,0.0002,2]
[380318730,1755667832233,-480.0,0.00020257,2]
[380318732,1755667832247,-510.39583657,0.00020257,2]
[380318734,1755667832262,-500.0,0.00020257,2]
[380318736,1755667832271,-275.45699852,0.00020257,2]
[380318739,1755667832281,-560.04733037,0.00020531,2]
[380318741,1755667832291,-2029.67,0.00020615,2]
[380318743,1755667832301,-8807.63091576,0.00020616,2]
[380318745,1755667832310,-339.76010829,0.00020789,2]
[380318746,1755667832320,-2029.67,0.00020889,2]
[380318747,1755667832330,-6836.40072328,0.00020974,2]
[380318748,1755667832345,-1971.23019248,0.00020974,2]
[380318749,1755667832355,-2029.67,0.00021163,2]
[380318750,1755667832366,-480.0,0.00021331,2]
[380318751,1755667832376,-8807.63091576,0.00021331,2]
[380318752,1755667832385,-389.88251163,0.00021348,2]
[380318753,1755667832395,-1559.53004653,0.00021348,2]
[380318754,1755667832404,-3364.05633562,0.00021348,2]
[380318785,1755667838054,-421.1182481,0.00021347,2]
[380318787,1755667838064,-144.88626907,0.00021348,2]
[380318790,1755667838073,-5621.8249143,0.00021348,2]
[380318795,1755667838117,-610.05715162,0.00021348,2]
[380318797,1755667838127,-338.82270244,0.00021348,2]
[380318799,1755667838136,-1355.29080976,0.00021348,2]
[380318801,1755667838145,-3049.40432196,0.00021348,2]
[380318803,1755667838154,-852.62727469,0.00021348,2]
[380318860,1755667843239,-4794.01629907,0.00021134,2]
[380318870,1755667949406,164.43949,0.00013699,2]
[380318871,1755667986762,8933.87,0.0002705,60]
[380318872,1755668032465,2054.34174232,0.000189,2]
[380318875,1755668651759,4563.11480112,0.00018303,2]
[380318876,1755668653858,2113.17640888,0.00018846,2]
[380318877,1755668848136,-454.94544044,0.00019148,2]
[380318879,1755668922076,525.65689309,0.000189,2]
[380318893,1755668961550,477.90484279,0.00018846,2]
[380318894,1755668963479,1911.61937115,0.00018846,2]
[380318895,1755668965350,4296.84244151,0.00018846,2]
[380318896,1755668969744,303.36182618,0.000189,2]
[380318935,1755669032404,-857.18296094,0.00019148,2]
[380318937,1755669032414,-1995.65703556,0.000192,2]
[380318940,1755669032426,-4.34296444,0.000192,2]
[380318941,1755669032436,-1145.4728278,0.00019837,2]
[380318944,1755669032448,-54.5271722,0.00019837,2]
[380318946,1755669032457,-175.965889,0.00019863,2]
[380318948,1755669032466,-278.0,0.00019898,2]
[380318950,1755669032475,-300.0,0.00019898,2]
[380318952,1755669032484,-1200.0,0.00019898,2]
[380318954,1755669032493,-480.0,0.00019899,2]
[380318956,1755669032503,-178.90958182,0.00019899,2]
[380318957,1755669032513,-480.0,0.00019899,2]
[380318960,1755669032524,-480.0,0.00019899,2]
[380318961,1755669032533,-480.0,0.00019899,2]
[380318964,1755669032543,-480.0,0.00019899,2]
[380318966,1755669032552,-480.0,0.00019899,2]
[380318967,1755669032561,-480.0,0.00019899,2]
[380318969,1755669032571,-9615.40541041,0.000199,2]
[380318971,1755669032580,-482.86123107,0.00019999,2]
[380318973,1755669032590,-486.84063887,0.00019999,2]
[380318976,1755669032599,-480.0,0.00020173,2]
[380318977,1755669032608,-480.0,0.00020173,2]
[380318979,1755669032618,-157.16840863,0.00020173,2]
[380318981,1755669032627,-480.0,0.00020173,2]
[380318983,1755669032637,-1775.96,0.00020257,2]
[380318985,1755669032647,-480.0,0.00020257,2]
[380318987,1755669032657,-510.21,0.00020257,2]
[380318989,1755669032668,-9615.40541024,0.00020258,2]
[380318991,1755669032683,-666.88264664,0.00020347,2]
[380318993,1755669032702,-480.0,0.00020447,2]
[380318995,1755669032720,-480.0,0.00020447,2]
[380318997,1755669032730,-1775.96,0.00020531,2]
[380318999,1755669032739,-480.0,0.00020531,2]
[380319001,1755669032749,-550.95917263,0.00020721,2]
[380319003,1755669032758,-480.0,0.00020721,2]
[380319005,1755669032767,-1775.96,0.00020805,2]
[380319007,1755669032776,-299.07804961,0.00020805,2]
[380319010,1755669032787,-180.92195039,0.00020805,2]
[380319012,1755669032797,-164.43949,0.00020951,2]
[380319014,1755669032807,-9615.40541024,0.00020974,2]
[380319016,1755669032816,-375.30253176,0.00020995,2]
[380319044,1755669038261,-435.0,0.00019899,2]
[380319045,1755669038375,-1118.96,0.00019899,2]
[380319046,1755669038386,-1553.96,0.00020173,2]
[380319047,1755669038397,-1553.96,0.00020447,2]
[380319048,1755669038408,-1553.96,0.00020721,2]
[380319049,1755669038418,-104.69746824,0.00020995,2]
[380319050,1755669038429,-1553.96,0.00020995,2]
[380319051,1755669038440,-250.0,0.00021026,2]
[380319052,1755669038451,-480.0,0.00021079,2]
[380319053,1755669038462,-322.343682,0.00021096,2]
[380319054,1755669038473,-432.2343682,0.00021096,2]
[380319055,1755669038483,-432.2343682,0.00021096,2]
[380319056,1755669038494,-432.2343682,0.00021096,2]
[380319057,1755669038504,-432.2343682,0.00021096,2]
[380319058,1755669038514,-480.0,0.00021269,2]
[380319059,1755669038525,-1553.96,0.00021269,2]
[380319060,1755669038536,-666.8826466,0.00021292,2]
[380319061,1755669038547,-500.0,0.0002133,2]
[380319062,1755669038558,-203.26847816,0.0002133,2]
[380319063,1755669038569,-533.60937222,0.0002133,2]
[380319064,1755669038579,-500.0,0.0002133,2]